{"text_format":"1","workbook":"xlsx","n_sheets":3,"sheets":["Prompt","Cedula1B","Enviar"],"not_rendered":{"charts":0,"images":4,"macros":1,"external_links":0,"defined_names":1,"comments":0,"pivot_tables":0},"unopened":[],"bounds":{"document_bytes":16777216,"sheet_cells":100000,"rows_first":2000,"rows_last":500,"rows_between":2000,"halvings":0,"cell_chars":16384,"cell_head_chars":4096},"cells_cut":0,"cells_raw":0,"read":"whole","date_system":"1900"}

{"sheet":"Prompt","index":0,"n_rows":38,"n_cols":4,"rows_kept":38,"cut":false,"hidden":false,"merged":[[0,3,1,5],[3,1,5,8],[8,1,9,8],[37,1,38,8]]}
[null,null,null,"¡ATENCIÓN!"]
[]
[]
[null,"Para hacer uso de las funcionalidades de esta Cédula Electrónica debe habilitar macros"]
[]
[]
[]
[]
[null,"Si utiliza Excel 2000, 2002, 2003 siga el siguiente procedimiento:"]
[]
[]
[]
[]
[]
[]
[]
[]
[]
[]
[]
[]
[]
[]
[]
[]
[]
[]
[]
[]
[]
[]
[]
[]
[]
[]
[]
[]
[null,"Si utiliza Excel 2007 siga el siguiente procedimiento:"]

{"sheet":"Cedula1B","index":1,"n_rows":128,"n_cols":17,"rows_kept":128,"cut":false,"hidden":true,"merged":[[85,13,85,14],[84,2,84,6],[84,7,84,9],[84,10,84,12],[84,13,84,14],[85,2,85,6],[85,7,85,9],[85,10,85,12],[40,2,42,4],[50,5,51,6],[51,7,51,8],[50,2,52,4],[60,7,61,8],[50,7,50,14],[51,11,51,12],[60,2,62,6],[51,9,51,10],[51,13,51,14],[61,11,61,12],[57,3,57,4],[60,9,60,16],[61,9,61,10],[61,13,61,14],[61,15,61,16],[80,2,80,14],[82,7,82,9],[83,13,83,14],[83,2,83,6],[82,10,82,12],[82,13,82,14],[83,7,83,9],[83,10,83,12],[16,5,16,9],[16,12,16,13],[0,13,0,14],[1,5,1,11],[2,5,2,11],[3,5,3,11],[12,12,12,13],[14,5,14,13],[12,5,12,6],[1,13,3,14],[41,13,41,14],[40,5,41,6],[41,9,41,10],[32,12,32,13],[34,12,34,13],[33,5,33,6],[41,7,41,8],[40,7,40,14],[41,11,41,12]]}
[null,null,null,null,null,null,null,null,null,null,null,null,null,"CÉDULA"]
[null,null,null,null,null,"CENSO EDUCATIVO 2022",null,null,null,null,null,null,null,"1B"]
[null,null,null,null,null,"Educación Básica Regular"]
[null,null,null,null,null,"Inicial Escolarizada"]
[null,null,"Versión :",2]
[null,null,"INSTRUCCIONES DEL FORMATO ELECTRÓNICO "]
[]
[]
[]
[null,null,"IDENTIFICACIÓN DEL SERVICIO EDUCATIVO"]
[]
[]
[null,null,"1.  CÓDIGO MODULAR :",null,null,null,null,null,null,null,null,"  2.  CÓDIGO DE LOCAL EDUCATIVO :  "]
[]
[null,null,"3.  NOMBRE DEL SERVICIO:"]
[]
[null,null,"4. DISTRITO :",null,null,null,null,null,null,null,null,"GESTIÓN :   ",null,null,{"$f":"IF(M17=\"2: Privada\",\"X\",\"\")","v":""}]
[]
[]
[]
[null,null,"FORMA DE ATENCIÓN : ",null,null,null,null,"A2: Jardín",null,null,null,"A3: Cuna- Jardín"]
[]
[]
[null,null,"COSTOS POR PANDEMIA 2020 (SOLO GESTIÓN PRIVADA)"]
[null,null,"5. DURANTE EL AÑO 2020, ¿EL SERVICIO EDUCATIVO REDUJO EL COSTO"]
[null,null," DE LA PENSIÓN ESCOLAR POR LA PANDEMIA?",null,null,null,null,null,"Si   ",null,"No   ",null,"Pase a la SECCIÓN 100."]
[]
[]
[null,null,"6. INDIQUE EL COSTO DE LA NUEVA PENSIÓN ESCOLAR (COSTO MENSUAL Y EN MONEDA NACIONAL)"]
[null,null," QUE COBRÓ EN 2020 DEBIDO A LA PANDEMIA, SEGÚN ESCALA."]
[]
[null,null,null,null,"Única",null,null,null,null,"Varias"]
[null,null,null,null,null,null,null,null,null,null,"Escala mínima"]
[null,null,null,null,"Pensión"]
[null,null,null,null,null,null,null,null,null,null,"Escala máxima"]
[]
[]
[null,null,"100. RESULTADO DEL EJERCICIO EDUCATIVO.\nSólo para alumnos de 3 a más años de edad."]
[null,null,"Complete y remita esta sección entre diciembre del año 2022 y enero del año 2023."]
[null,null,"101 - RESULTADO DEL EJERCICIO EDUCATIVO A DICIEMBRE DE 2022, POR EDAD Y SEXO."]
[null,null,"SITUACIÓN",null,null,"TOTAL",null,"EDAD Y SEXO"]
[null,null,null,null,null,null,null,3,null,4,null,5,null,"6 y más"]
[null,null,null,null,null,"H","M","H","M","H","M","H","M","H","M"]
["00",null,"TOTAL MATRÍCULA",null,null,{"$f":"SUM(F45:F49)","v":0},0,0,0,0,0,{"$f":"SUM(L45:L49)","v":0},{"$f":"SUM(M45:M49)","v":0},{"$f":"SUM(N45:N49)","v":0},{"$f":"SUM(O45:O49)","v":0}]
["01",null,"Promovidos",null,null,{"$f":"SUM(H45,J45,L45,N45)","v":0},0]
["02",null,"Promoción guiada",null,null,{"$f":"SUM(H46,J46,L46,N46)","v":0},{"$f":"SUM(I46,K46,M46,O46)","v":0}]
["03",null,"Trasladados a otras II.EE.",null,null,0,0]
["04",null,"Retirados",null,null,0,0]
["05",null,"Fallecidos",null,null,0,0]
[null,null,"102 - RETIRADOS POR EDAD Y SEXO, SEGÚN MOTIVO"]
[null,null,"MOTIVO",null,null,"TOTAL",null,"EDAD Y SEXO"]
[null,null,null,null,null,null,null,3,null,4,null,5,null,"6 y más"]
[null,null,null,null,null,"H","M","H","M","H","M","H","M","H","M"]
["00",null,"TOTAL",null,null,{"$f":"SUM(F55:F58)","v":0},0,0,0,0,0,{"$f":"SUM(L55:L58)","v":0},{"$f":"SUM(M55:M58)","v":0},{"$f":"SUM(N55:N58)","v":0},{"$f":"SUM(O55:O58)","v":0}]
["01",null,"Situación económica",null,null,{"$f":"SUM(H55,J55,L55,N55)","v":0},0]
["02",null,"Violencia",null,null,0,0]
["03",null,"Enfermedad",null,null,0,0]
["04",null,"Otros",null,null,0,0]
[null,null,"Nota.- Los totales de esta tabla deben ser iguales a los reportados en el rubro \"Retirados\" de la tabla 101, seún edad que corresponda."]
[null,null,"103. MATRÍCULA TOTAL POR EDAD Y SEXO, SEGÚN TIPO DE DISCAPACIDAD U OTRA CONDICIÓN"]
[null,null,"TIPO DE DISCAPACIDAD U OTRA CONDICIÓN",null,null,null,null,"TOTAL",null,"EDAD Y SEXO"]
[null,null,null,null,null,null,null,null,null,3,null,4,null,5,null,"6 y más"]
[null,null,null,null,null,null,null,"H","M","H","M","H","M","H","M","H","M"]
["00",null,"TOTAL",null,null,null,null,{"$f":"SUM(H65:H78)","v":0},0,0,0,0,0,0,0,0,0]
["01",null,"Discapacidad Intelectual-Leve",null,null,null,null,{"$f":"J65+L65+N65+P65","v":0},{"$f":"K65+M65+O65+Q65","v":0}]
["02",null,"Discapacidad Intelectual-Moderada",null,null,null,null,{"$f":"J66+L66+N66+P66","v":0},{"$f":"K66+M66+O66+Q66","v":0}]
["03",null,"Discapacidad Intelectual-Severa",null,null,null,null,0,0]
["04",null,"Discapacidad Auditiva-Hipoacusia",null,null,null,null,0,0]
["05",null,"Discapacidad Auditiva-Sordera",null,null,null,null,0,0]
["06",null,"Discapacidad Visual-Baja visión",null,null,null,null,0,0]
["07",null,"Discapacidad Visual-Ceguera",null,null,null,null,0,0]
["08",null,"Discapacidad Física o Motora",null,null,null,null,0,0]
["09",null,"Trastorno del espectro Autista (TEA)",null,null,null,null,0,0]
["10",null,"Sordoceguera",null,null,null,null,0,0]
["11",null,"Multidiscapacidad",null,null,null,null,0,0]
["12",null,"Talento y Superdotación (altas capacidades)",null,null,null,null,0,0]
["13",null,"Otra discapacidad u otra condición",null,null,null,null,0,0]
["14",null,"Ninguna (No tiene discapacidad u otra condición)",null,null,null,null,{"$f":"J78+L78+N78+P78","v":0},{"$f":"K78+M78+O78+Q78","v":0}]
[null,null,"Nota 2: Los totales de esta tabla deben ser iguales a los de la tabla 101 por edad y sexo."]
[]
[null,null,"DATOS DEL RESPONSABLE DEL LLENADO DE LA CÉDULA"]
[]
[null,null,null,"NOMBRES Y APELLIDOS",null,null,null,"CARGO",null,null,"CORREO ELECTRÓNICO",null,null,"TELÉFONO"]
["1"]
["2"]
["3"]
[]
[]
[]
["DIRECTOR(A)"]
["SUB DIRECTOR(A)"]
["DOCENTE"]
["COORDINADOR(A)"]
["ASESOR"]
["ADMINISTRATIVO"]
["ASISTENTE"]
["AUXILIAR"]
["SECRETARIA(O)"]
["ESTADÍSTICO"]
["ESPECIALISTA"]
["BIBLIOTECARIO"]
["CARE"]
["COMANDANTE PNP"]
["CONTADOR"]
["DAIP"]
["DIGITADOR(A)"]
["GERENTE"]
["JEFE ACADÉMICO"]
["JEFE ADMINISTRATIVO"]
["JEFE DE AREA"]
["JEFE DE LABORATORIO"]
["JEFE DE PERSONAL"]
["JEFE DE SEDE"]
["JEFE UNIDAD"]
["OFICINISTA"]
["OPERADOR DE SISTEMAS"]
["PERSONAL DE SERVICIO"]
["PROGRAMADOR"]
["PROMOTOR(A)"]
["PSICOLOGO"]
["REGISTRADOR(A)"]
["REPRESENTANTE LEGAL"]
["SOPORTE TECNOLOGICO"]
["TÉCNICO ADMINISTRATIVO"]
["TESORERO(A)"]
["TRABAJADOR SOCIAL"]
["TUTOR"]
["OTROS"]

{"sheet":"Enviar","index":2,"n_rows":9,"n_cols":3,"rows_kept":9,"cut":false,"hidden":true,"merged":[[0,0,0,3],[1,0,1,3]]}
["CENSO EDUCATIVO 2022"]
["RESULTADO DEL EJERCICIO EDUCATIVO"]
[]
[]
[null,"Paso 1:","Realice el ENVÍO con su clave EOL."]
[]
[null,"Paso 2:","Una vez realizado el ENVÍO,  Revise su constancia de envio."]
[]
[null,"  ADVERTENCIA","Asegúrese de registrar toda la información del nivel informante"]